Cogmind - Beta 16.1 @@@ ROGUE MODE // 2026.02.16 @ 11:31:50 Player: C0-2MO Result: Escaped! Performance ------------- Evolutions (9) 4500 Regions Visited (25) 5000 Robots Destroyed (469) 2345 Value Destroyed (25157) 25157 Prototype IDs (58) 1160 Alien Tech Used (0) 0 Bonus (16652) 16652 TOTAL SCORE: 54814 Bonus ------- High Alert Combat Kills 5855 Follower Combat Kills 386 Entered Garrisons 600 Entered DSFs 500 Acquired ECA 300 Met Warlord at Base 500 MAIN.C Attacked Warlord 500 Warlord Defense Kills 1376 Met Warlord at Research 2000 Scanned by Researcher 500 Met Warlord at Command 2000 Win 3000 Friendly Fire -865 Cogmind --------- Core Integrity 1015/1600 Matter 568/700 Energy 940/1200 System Corruption 4% Temperature Cool (-181) Movement Treading (155) Location To Epsilon Eridani Parts ------- > --- POWER (2) -------- Quantum Reactor Reinforced Quantum Reactor > --- PROPULSION (6) --- Biometal Heavy Treads Advanced Heavy Siege Treads Advanced Heavy Siege Treads > --- UTILITY (11) ----- Advanced Cryofiber Web Advanced Heat Sink Huge Storage Unit Experimental Energy Well Advanced Matter Compressor Experimental Targeting Computer Experimental Core Analyzer Medium Reflective Plating Graphene Brace Advanced Focal Shield Advanced Remote Force Field > --- WEAPON (6) ------- Compact Mass Driver (fused) Enhanced Hardcell Cannon Enhanced Hardcell Cannon Enhanced Hardcell Cannon Compact Linear Accelerator Compact Linear Accelerator > --- INVENTORY (25) --- Reinforced Antimatter Reactor Light Quantum Reactor Advanced Heavy Siege Treads Advanced Cryofiber Web Advanced Matter Compressor (400) Experimental Cloaking Device Thermal Barrier Advanced Point Defense System Railgun Mini Smartbomb Launcher Power Sword Peak State ------------ > --- POWER ------------ Reinforced Antimatter Reactor Quantum Reactor > --- PROPULSION ------- Experimental Biometal Heavy Treads Experimental Biometal Heavy Treads Experimental Biometal Heavy Treads > --- UTILITY ---------- Advanced Cryofiber Web Advanced Heat Sink Huge Storage Unit Experimental Targeting Computer Advanced Target Analyzer Experimental Core Analyzer Experimental Cloaking Device Layered Heavy Armor Plating Graphene Brace Advanced Force Field > --- WEAPON ----------- Railgun Railgun Helical Railgun Helical Railgun Helical Railgun Multirail > --- INVENTORY -------- Biometal Heavy Treads Advanced Heavy Siege Treads Advanced Cryofiber Web Advanced Heat Sink Experimental Energy Well Advanced Matter Compressor Advanced Matter Compressor Matter Filter Improved Kinecellerator Heavy Servo Lattice Thermal Barrier Advanced Remote Force Field Advanced Point Defense System Long-range Tractor Beam Hypervelocity Multirail Compact Mass Driver Enhanced Hardcell Cannon Enhanced Hardcell Cannon Compact Linear Accelerator Compact Linear Accelerator Mini Smartbomb Launcher Power Sword [Rating: 222] Favorites ----------- Power Quantum Reactor Engine Heavy Ion Engine Power Core Micro Fission Core Reactor Quantum Reactor Propulsion Experimental Biometal Heavy Treads Treads Experimental Biometal Heavy Treads Leg Flexi-carbon Leg Wheel Compact Wheel Hover Unit Backup Propulsion I Flight Unit VTOL Module Utility Huge Storage Unit Device Advanced Heat Sink Storage Huge Storage Unit Processor Experimental Targeting Computer Protection Improved Medium Armor Plating Weapon Heavy Machine Gun Energy Gun Improved EM Shotgun Energy Cannon Advanced Beam Cannon Ballistic Gun Heavy Machine Gun Ballistic Cannon Enhanced Hardcell Cannon Launcher Mini Grenade Launcher Impact Weapon Flail Slashing Weapon Axe Piercing Weapon Vortex Lance Build | -11 -10 -10 -9 -9 -9 -8 -7 -7 -7 -7 -6 -6 -5 -5 -5 -5 -4 -4 -3 -3 -3 -2 -2 -1 -1 ------- Run | Yrd Mat Min Mat Sto Gar Mat Fac Was Fac Gar Fac DSF Fac Upp Upp War Pro Fac Res Gar Res Res Tes Acc Com Slots Evolved 18 | . . . 2 . . 2 2 . . . 2 . 2 . . . . 2 2 . . 2 . 2 . Power 1 | . . . . . . . 1 . . . . . . . . . . . . . . . . . . Propulsion 4 | . . . . . . 1 . . . . 1 . . . . . . 1 1 . . . . . . Utility 9 | . . . 1 . . . 1 . . . 1 . 1 . . . . 1 . . . 2 . 2 . Weapon 4 | . . . 1 . . 1 . . . . . . 1 . . . . . 1 . . . . . . Parts Attached 268 | 7 10 1 14 2 10 10 14 2 1 8 1 13 18 2 8 14 1 5 8 42 11 33 10 14 9 Power 24 | 1 1 . 1 . 1 1 1 . . . . 2 2 . . 1 . . . 6 . 4 . 1 2 Engine 8 | 1 1 . 1 . 1 1 . . . . . 2 . . . . . . . 1 . . . . . Core 2 | . . . . . . . 1 . . . . . 1 . . . . . . . . . . . . Reactor 14 | . . . . . . . . . . . . . 1 . . 1 . . . 5 . 4 . 1 2 Propulsion 52 | 2 2 . 3 . 1 2 2 1 . 3 . 4 4 . 1 . . 1 1 15 . 4 1 3 2 Treads 34 | 1 2 . 3 . 1 2 1 1 . . . . 3 . 1 . . 1 1 7 . 4 1 3 2 Leg 12 | . . . . . . . . . . . . 4 . . . . . . . 8 . . . . . Wheel 3 | 1 . . . . . . 1 . . . . . 1 . . . . . . . . . . . . Hover . | . . . . . . . . . . . . . . . . . . . . . . . . . . Flight 3 | . . . . . . . . . . 3 . . . . . . . . . . . . . . . Utility 90 | 2 4 . 2 1 1 5 7 1 . . 1 3 10 2 3 11 1 1 1 6 3 13 4 6 2 Device 51 | 1 . . 2 1 . 3 3 1 . . . 2 6 2 2 5 1 1 . 4 1 7 3 5 1 Storage 11 | 1 2 . . . . . 1 . . . . . 2 . . 1 . . . 1 . 1 1 1 . Processor 12 | . . . . . . . 3 . . . . . 1 . 1 3 . . 1 . . 3 . . . Hackware . | . . . . . . . . . . . . . . . . . . . . . . . . . . Protection 16 | . 2 . . . 1 2 . . . . 1 1 1 . . 2 . . . 1 2 2 . . 1 Artifact . | . . . . . . . . . . . . . . . . . . . . . . . . . . Weapon 102 | 2 3 1 8 1 7 2 4 . 1 5 . 4 2 . 4 2 . 3 6 15 8 12 5 4 3 Energy Gun 16 | . . . 5 1 6 2 . . . . . . . . . . . . . 2 . . . . . Energy Cannon 1 | . . . 1 . . . . . . . . . . . . . . . . . . . . . . Ballistic Gun 58 | 2 . 1 2 . . . 4 . 1 4 . 4 2 . 4 1 . 3 2 8 8 8 4 . . Ballistic Cannon 16 | . . . . . . . . . . . . . . . . . . . 4 3 . 1 1 4 3 Launcher 5 | . 1 . . . 1 . . . . . . . . . . . . . . 1 . 2 . . . Special Weapon . | . . . . . . . . . . . . . . . . . . . . . . . . . . Impact Weapon 1 | . 1 . . . . . . . . . . . . . . . . . . . . . . . . Slashing Weapon 3 | . 1 . . . . . . . . 1 . . . . . . . . . . . 1 . . . Piercing Weapon 2 | . . . . . . . . . . . . . . . . 1 . . . 1 . . . . . Special Melee Weapon . | . . . . . . . . . . . . . . . . . . . . . . . . . . Unidentified Prototypes 35 | . . . 3 1 . . . . . . . 1 1 . . 9 1 . . 2 . 11 6 . . Corrupted Parts 1 | . . . . . . . . . . . . . . . . 1 . . . . . . . . . System Corruption 3 | . . . . . . . . . . . . . . . . 3 . . . . . . . . . Parts Lost 104 | . 2 . . . 3 13 1 2 . 10 . . 2 1 9 . . 3 4 30 4 1 . 10 9 Power 11 | . 1 . . . . 1 1 1 . 1 . . . . 1 . . . . 4 . . . 1 . Propulsion 18 | . . . . . 1 4 . . . 2 . . . . . . . . . 9 . . . 1 1 Utility 25 | . 1 . . . . 3 . . . . . . 1 1 4 . . . . 4 2 1 . 3 5 Weapon 50 | . . . . . 2 5 . 1 . 7 . . 1 . 4 . . 3 4 13 2 . . 5 3 Highest Loss Streak 28 | . 1 . . . 1 5 1 2 . 6 . . 2 1 5 . . 2 2 28 2 1 . 7 5 To Critical Strikes 1 | . . . . . . . . . . . . . . . . . . . . 1 . . . . . Average Backups 16 | 2 8 14 14 14 14 12 4 7 7 7 5 4 14 22 19 18 19 19 20 14 22 22 22 19 16 Power 1 | . 1 1 1 1 1 1 1 1 1 1 1 . . 1 1 . 1 2 2 . 2 2 1 . 1 Propulsion 2 | 1 3 5 3 3 2 . 1 . . . . . . 2 2 2 2 1 2 2 4 2 2 1 1 Utility 6 | . 3 5 3 2 3 4 . 3 4 4 2 1 6 10 8 7 8 7 6 7 10 10 12 10 8 Weapon 6 | . 1 3 6 8 7 5 2 3 2 2 2 2 6 9 7 7 8 8 9 3 5 7 7 7 4 Tool/Special . | . . . . . . . . . . . . . . . . . . . . . . . . . . Unused Backups 38 | . 1 . 10 2 1 2 1 . . 2 1 . 2 . . . 1 1 2 . . 7 2 . 3 Power 2 | . . . 1 . . . 1 . . . . . . . . . . . . . . . . . . Propulsion 8 | . . . 3 . . . . . . . . . . . . . . . . . . 4 . . 1 Utility 14 | . 1 . 2 . . 2 . . . 2 1 . . . . . 1 . 1 . . 1 1 . 2 Weapon 14 | . . . 4 2 1 . . . . . . . 2 . . . . 1 1 . . 2 1 . . Tool/Special . | . . . . . . . . . . . . . . . . . . . . . . . . . . Average Slot Usage (%) 87 | . 98 100 97 97 99 98 65 84 84 64 33 67 90 87 85 86 87 83 83 75 79 81 81 85 87 Engine 4 | . 14 14 11 11 11 8 10 3 . . . 4 2 . . 4 5 . . . . . . . . Core 1 | . . . . . . . . 7 7 1 . . 3 5 5 4 5 . . . . . . . . Reactor 3 | . . . . . . . . . . . . . 3 5 3 . . 4 4 5 9 8 8 7 8 Treads 15 | . 20 28 22 22 21 26 2 7 7 5 . . 9 11 11 11 11 14 18 12 14 13 13 12 14 Device 10 | . 1 . 10 11 11 9 3 7 7 6 . 4 17 16 16 9 1 6 9 4 4 12 12 21 24 Storage 6 | . 14 14 11 11 11 9 . 7 7 6 . . 4 5 5 5 5 5 4 3 4 4 4 5 8 Processor 8 | . . . . . . . 12 15 15 10 6 6 1 5 5 12 23 21 19 14 14 13 13 11 8 Protection 6 | . 12 14 11 9 11 8 5 . . . . 7 8 5 4 5 3 3 . 2 3 3 4 2 . Energy Gun 7 | . . . 24 29 31 32 6 . . . . . . . . . . . . 4 8 . . . . Ballistic Gun 17 | . 22 26 3 . . . 12 26 30 23 . 12 28 29 28 28 29 26 25 10 15 25 25 18 6 Ballistic Cannon 1 | . . . . . . . . . . . . . . . . . . . 1 5 1 . . 5 17 Peak Build Rating 222 | 7 13 13 27 27 29 36 30 39 42 42 17 72 101 100 100 117 110 131 155 155 141 200 209 222 214 Average Rating 98 | 5 9 12 22 26 27 32 18 34 42 31 14 48 92 99 91 92 107 129 145 124 136 182 202 215 204 On Entrance 76 | . 7 13 12 27 26 28 1 30 39 42 13 17 72 99 100 83 108 107 131 152 136 137 199 206 203 Avg Prop Armor Cover (%) 9 | 13 9 . . . . . 7 11 13 14 . 4 1 . . . . . . 4 . . . . . Naked Turns 13 | . . . . . . 5 8 . . . . . . . . . . . . . . . . . . Heaviest Build 224 | 13 34 34 44 44 50 53 24 24 24 24 10 59 140 139 137 142 124 162 174 208 168 194 198 206 224 Greatest Support 255 | 16 46 46 46 44 45 67 12 12 70 70 12 65 140 140 140 140 140 167 202 225 225 255 255 255 235 Greatest Overweight (x) 4 | . 1 . . . 1 1 1 1 1 4 . 1 . . . 1 . . . 2 . 1 . 1 1 Average Overweight (x) . | . . . . . . . . 1 . . . . . . . . . . . . . . . . . Largest Inventory Capacity 30 | 8 15 15 15 15 15 15 8 8 8 8 5 5 25 25 25 25 25 25 25 30 25 25 25 25 25 Average Capacity 20 | 7 13 15 15 15 15 14 5 8 8 7 5 5 18 25 25 25 25 25 25 22 25 25 25 25 25 Most Carried 25 | 3 14 15 15 15 15 15 6 8 7 8 5 5 25 25 23 25 25 25 25 25 25 25 25 25 21 Average Carried 18 | 2 8 14 14 14 14 12 4 7 7 7 4 4 15 23 20 21 24 23 24 16 24 24 24 21 18 Final Capacity 25 | 8 15 15 15 15 15 5 8 8 8 5 5 5 25 25 25 25 25 25 25 25 25 25 25 25 25 Final Carried 25 | 3 13 15 15 15 14 5 6 8 7 5 5 5 25 23 16 25 25 24 21 25 25 25 25 16 12 Class Distribution -------------------- 36% | Scavenger-Executioner 26% | Tank 16% | Mutant 10% | Scavenger-Tank 8% | Scavenger-Gunner Dominant Class ---------------- Mutant | -10/Materials Mutant | -10/Mines Tank | -9/Materials Tank | -9/Storage Tank | -9/Garrison Tank | -8/Materials Mutant | -7/Factory Scavenger-Tank | -7/Waste Scavenger-Tank | -7/Factory Scavenger-Tank | -7/Garrison Scavenger-Sprinter | -6/Factory Scavenger-Sprinter | -6/DSF Tank | -5/Factory Tank | -5/Upper Caves Tank | -5/Upper Caves Scavenger-Tank | -5/Warlord Scavenger-Gunner | -4/Proximity Caves Scavenger-Tank | -4/Factory Scavenger-Executioner | -3/Research Scavenger-Executioner | -3/Garrison Scavenger-Executioner | -3/Research Scavenger-Executioner | -2/Research Scavenger-Executioner | -2/Testing Scavenger-Executioner | -1/Access Scavenger-Executioner | -1/Command Resources | -11 -10 -10 -9 -9 -9 -8 -7 -7 -7 -7 -6 -6 -5 -5 -5 -5 -4 -4 -3 -3 -3 -2 -2 -1 -1 ----------- Run | Yrd Mat Min Mat Sto Gar Mat Fac Was Fac Gar Fac DSF Fac Upp Upp War Pro Fac Res Gar Res Res Tes Acc Com Matter Collected 17328 | 324 504 62 383 64 313 196 461 219 . 620 . 228 637 246 714 630 140 451 1790 1722 281 1392 2329 2563 1059 Remotely 6016 | . . . . . . . . . . . . . 75 . 306 . . 295 692 517 . 166 1309 1760 896 Salvage Created 25387 | 137 651 54 1246 154 1271 2213 768 265 . 741 . . 1447 334 1150 700 274 592 2515 2318 681 1284 2155 3841 596 Parts 1146 | 10 46 6 85 16 72 103 34 5 . 38 . . 68 18 43 10 15 28 112 83 31 51 97 146 29 Haulers Intercepted 15 | . 1 . 5 . . 2 1 . . . . . 2 . . . . . . . . 1 1 2 . Recyclers Shooed 15 | . 1 1 . . . 1 2 . . . . . 3 . . . . . 3 . 1 . . 1 2 Parts Field Recycled . | . . . . . . . . . . . . . . . . . . . . . . . . . . Retrieved Matter . | . . . . . . . . . . . . . . . . . . . . . . . . . . Parts Self-Destructed 78 | . . . . . . . . . . . . . . 22 42 . 14 . . . . . . . . Prevented . | . . . . . . . . . . . . . . . . . . . . . . . . . . Parts Restored . | . . . . . . . . . . . . . . . . . . . . . . . . . . Kills | -11 -10 -10 -9 -9 -9 -8 -7 -7 -7 -7 -6 -6 -5 -5 -5 -5 -4 -4 -3 -3 -3 -2 -2 -1 -1 ------- Run | Yrd Mat Min Mat Sto Gar Mat Fac Was Fac Gar Fac DSF Fac Upp Upp War Pro Fac Res Gar Res Res Tes Acc Com Combat Hostiles Destroyed 370 | . 16 2 19 5 29 36 4 1 . 18 . . 18 8 18 11 7 8 30 32 11 16 22 48 11 Melee 4 | . . . . . . . . . . . . . . . . . . . . 3 . . . . 1 Guns 303 | . 16 2 17 4 19 25 4 1 . 18 . . 18 8 18 11 7 8 27 14 11 16 22 34 3 Cannons 26 | . . . . . . . . . . . . . . . . . . . 2 10 . . . 7 7 AOE 32 | . . . 2 1 8 8 . . . . . . . . . . . . 1 5 . . . 7 . Classes Destroyed 27 | 2 5 . 4 . 3 2 . 1 . . . . 1 . 1 2 . . . . . 2 2 . 2 Worker 18 | . 1 1 . . . 1 3 . . . . . 1 . . . . . 1 . 1 1 5 2 1 Builder 13 | . . . 1 . . 3 1 . . . . . . . . . . . . . . . 4 4 . Tunneler 11 | 3 2 1 . . . 1 . . . . . . . . . . . . 2 . . . . 2 . Hauler 15 | . 1 . 5 . . 2 1 . . . . . 2 . . . . . . . . 1 1 2 . Recycler 15 | 1 . . 1 1 . 2 5 . . . . . 2 . . . . . 2 . 1 . . . . Minesweeper 1 | . . . . . . . . . . . . . . . 1 . . . . . . . . . . Mechanic 5 | . . . . . . 2 1 . . . . . . . . . . . . . . 1 1 . . Operator 4 | . . . 1 . . . . . . . . . . . . . . . 1 . . 1 . . 1 Watcher 11 | . 1 . 2 . . 2 . . . . . . . . . . . . 1 . . . . 2 3 Swarmer 65 | . 6 2 4 4 7 4 . . . 7 . . 5 4 1 . 5 . . 2 7 1 2 4 . Saboteur 1 | . . . . . 1 . . . . . . . . . . . . . . . . . . . . Grunt 153 | . 10 . 10 . 11 22 3 . . 9 . . 3 2 8 6 2 4 15 15 . 6 8 19 . Brawler 10 | . . . . . . 2 . . . . . . . . 2 2 . . . 3 . . . 1 . Duelist 16 | . . . 1 . 1 2 . . . 1 . . 1 1 2 . . . . 2 . . 1 4 . Protector 1 | . . . . . . . . . . . . . . . . 1 . . . . . . . . . Researcher 2 | . . . . . . . . . . . . . . . . . . . . . . . 2 . . Sentry 43 | . . . 4 1 7 6 . . . 1 . . 1 1 2 . . 2 5 3 . 3 2 3 2 Demolisher 1 | . . . . . . . . . . . . . . . . . . . . . . 1 . . . Hunter 42 | . . . . . . . . . . . . . 4 . 3 1 . 2 4 6 4 . 3 14 1 Programmer 22 | . . . . . 1 . 1 . . . . . 4 . . . . . 5 . . 1 4 1 5 Q-Series 3 | . . . . . . . . . . . . . . . . . . . . . . . 2 1 . Behemoth 4 | . . . . . 1 . . . . . . . . . . . . . 1 1 . . . 1 . Compactor 1 | . . . . . . . . 1 . . . . . . . . . . . . . . . . . Striker 6 | . . . . . . . . . . . . . . . . 1 . . . . . 4 . . 1 Executioner 1 | . . . . . . . . . . . . . . . . . . . . . . . . . 1 Alpha 7 1 | . . . . . . . . . . . . . . . . . . . . . . . . . 1 Thug 3 | . . . 1 . 1 . . . . . . . . . . 1 . . . . . . . . . Fireman 1 | . . . . . . . . . . . . . . . . . . . . . . 1 . . . Best Kill Streak 25 | 4 3 2 4 4 6 13 13 1 . 4 . . 5 4 7 7 5 5 12 10 7 4 11 25 4 Combat Bots Only 21 | . 3 2 4 4 6 7 4 1 . 4 . . 5 4 7 7 5 5 10 10 7 4 6 21 4 Max Kills in Single Turn 5 | 1 2 1 3 1 3 3 2 1 . 2 . . 5 2 2 2 3 1 2 3 2 3 2 5 1 Gunslinging 3 | . . . 1 . 1 1 . . . 1 . . 3 1 1 . 2 . . . 1 1 1 1 . Exploded 4 | . . . 1 1 3 2 . . . . . . . . . . . . 1 3 . . . 4 . Melee 1 | . . . . . . . . . . . . . . . . . . . . 1 . . . . 1 Uniques/NPCs Destroyed . | . . . . . . . . . . . . . . . . . . . . . . . . . . Combat | -11 -10 -10 -9 -9 -9 -8 -7 -7 -7 -7 -6 -6 -5 -5 -5 -5 -4 -4 -3 -3 -3 -2 -2 -1 -1 -------- Run | Yrd Mat Min Mat Sto Gar Mat Fac Was Fac Gar Fac DSF Fac Upp Upp War Pro Fac Res Gar Res Res Tes Acc Com Hostile Shots Fired 2473 | . 61 10 63 9 81 153 18 1 11 188 . 32 95 30 113 10 16 93 168 402 111 17 180 458 153 Missed 681 | . 18 3 14 3 29 37 4 . 3 52 . 7 22 10 16 2 6 26 57 119 37 5 56 127 28 Intercepted 7 | . . . . . . . . . . . . . . . . . . . . . . . . 7 . Hits 1792 | . 43 7 49 6 52 116 14 1 8 136 . 25 73 20 97 8 10 67 111 283 74 12 124 331 125 Melee 42 | . . . . . 2 . . 1 . 5 . 2 2 . 15 . . . . 12 . . 1 2 . Projectile 1750 | . 43 7 49 6 50 116 14 . 8 131 . 23 71 20 82 8 10 67 111 271 74 12 123 329 125 AOE 9 | . . . . . . . . . . . . . . . . . . . . . . . . 9 . Critical Strikes 85 | . . . 4 . 1 11 2 . . 3 . 2 5 2 7 . 2 3 5 19 . . 4 11 4 Actively Blocked 20 | . . . . . . . . . . . . . . . . . . . . 5 . . . 11 4 Part Disruptions 1 | . . . . . . . . . . . . . . . . 1 . . . . . . . . . Damage Taken 29122 | . 441 79 589 78 887 2024 217 58 117 1761 . 455 1147 183 2137 333 180 674 1317 5649 1430 146 1377 5716 2127 Core 2746 | . 70 . 94 . 93 330 31 . . 274 . 51 31 . 98 14 18 66 87 768 82 . 54 422 163 Absorbed by Shields 4933 | . . . 89 . . . . . . 231 . 77 245 177 133 . . 614 929 273 . 124 1137 904 . Reduced by Siege Mode 958 | . . . . . . . . . . . . . . . 98 . . 29 9 23 . . . 397 402 Ignored by Resistances 960 | . . . . . 41 24 . . . . . . 40 . . . . . . . . . . 155 700 Regen/Repaired (Parts) 1711 | . 158 . 36 194 . 55 . . . . . . . . . 1075 . . . . 112 81 . . . Core Remaining (%) 70 | 100 . 72 . . 53 40 . . . 56 . 94 . . . . 83 94 . . 27 . 96 . 63 Volleys Fired 805 | 9 58 3 53 5 73 73 25 12 . 59 . 2 38 11 31 20 6 18 66 75 16 24 43 59 26 Largest 6 | 2 2 2 3 3 3 4 4 4 . 4 . 3 5 5 5 5 5 5 6 6 6 6 6 6 6 Hottest 344 | 40 40 40 135 135 165 190 100 100 . 101 . 90 148 146 146 137 147 147 241 268 283 249 229 313 344 Shots Fired 3115 | 18 115 6 139 15 151 242 78 46 . 163 . 6 188 57 155 100 30 90 337 230 80 143 258 320 148 Gun 2806 | 18 114 6 139 15 145 238 78 46 . 163 . 6 188 57 155 100 30 90 317 146 79 143 258 247 28 Cannon 289 | . . . . . . . . . . . . . . . . . . . 20 81 1 . . 67 120 Launcher 20 | . 1 . . . 6 4 . . . . . . . . . . . . . 3 . . . 6 . Special . | . . . . . . . . . . . . . . . . . . . . . . . . . . Kinetic 2526 | 18 114 6 51 . . . 60 46 . 163 . 6 188 57 155 100 30 90 337 195 49 141 258 314 148 Thermal 169 | . . . . . 6 80 18 . . . . . . . . . . . . 32 31 2 . . . Explosive 17 | . 1 . . . 6 4 . . . . . . . . . . . . . . . . . 6 . Electromagnetic 400 | . . . 88 15 139 158 . . . . . . . . . . . . . . . . . . . Entropic 3 | . . . . . . . . . . . . . . . . . . . . 3 . . . . . Robot Hit Streak 39 | 9 7 4 11 5 18 27 8 6 . 21 . 6 13 10 20 18 12 17 39 17 13 18 24 30 18 Robot Miss Streak 5 | 2 3 1 4 1 3 4 4 3 . 3 . 1 3 2 5 3 1 2 5 3 3 2 3 5 4 Penetration Max 2 | . . . . . . . . . . . . . 2 . 1 1 1 . 2 1 1 1 2 1 1 Secondary Targets 91 | . 2 1 2 . 5 8 1 . . 7 . . 6 4 8 4 3 3 6 . 4 2 8 15 2 Max Gunslinging Chain 3 | . 1 1 1 . 2 1 1 . . 1 . . 3 1 2 1 2 1 1 . 1 1 2 2 1 Shots Hit Robots 2079 | 11 68 5 98 8 81 166 45 27 . 102 . 4 122 40 111 82 24 58 232 176 45 85 182 218 89 Core Hits 1064 | 5 33 4 58 8 52 96 21 5 . 36 . 1 50 16 47 37 15 26 112 86 32 51 83 153 37 Critical Kills 77 | . . . . . . . . . . 4 . . . . 6 5 1 4 12 5 2 6 10 17 5 Critical Parts Destroyed 81 | . . 1 . . . . . . . 1 . . 2 1 3 3 1 2 14 8 . 1 15 22 7 Critical Strikes 205 | . . 1 . . 1 5 . 3 . 5 . . 2 1 10 8 2 6 26 25 4 7 27 47 25 Burn 5 | . . . . . . 3 . . . . . . . . . . . . . . 2 . . . . Destroy 175 | . . 1 . . . . . 3 . 5 . . 2 1 10 8 2 6 26 14 2 7 27 45 16 Blast 20 | . . . . . . . . . . . . . . . . . . . . 9 . . . 2 9 Corrupt 3 | . . . . . 1 2 . . . . . . . . . . . . . . . . . . . Sever 2 | . . . . . . . . . . . . . . . . . . . . 2 . . . . . Melee Attacks 105 | . 30 1 9 3 7 1 . . . 1 1 . . . . 1 . 1 6 33 1 1 3 2 4 Impact 29 | . 8 1 9 3 7 1 . . . . . . . . . . . . . . . . . . . Slashing 73 | . 22 . . . . . . . . 1 1 . . . . . . 1 6 31 1 1 3 2 4 Piercing . | . . . . . . . . . . . . . . . . . . . . . . . . . . Entropic 3 | . . . . . . . . . . . . . . . . 1 . . . 2 . . . . . Sneak Attacks 5 | . 2 . 2 . . . . . . . . . . . . . . . . . 1 . . . . Combat Hostiles . | . . . . . . . . . . . . . . . . . . . . . . . . . . Follow-up Attacks . | . . . . . . . . . . . . . . . . . . . . . . . . . . Damage Inflicted 56863 | 135 1027 90 1929 168 1915 4189 827 546 5 1664 . 84 3560 951 2197 1963 510 950 5319 7963 972 2145 5172 8986 3596 Guns 41680 | 135 841 72 1471 99 1277 3000 827 546 . 1650 . 84 3557 951 2197 1963 510 950 4709 2230 917 2115 5118 5915 546 Cannons 6921 | . . . . . . . . . . . . . . . . . . . 381 2264 . . . 1329 2947 Explosions 5497 | . . . 313 42 638 1155 . . . . . . . . . . . . 215 1484 . . . 1650 . Melee 2360 | . 181 . 139 . . . . . . . . . . . . . . . . 1985 55 . . . . Ramming 405 | . 5 18 6 27 . 34 . . 5 14 . . 3 . . . . . 14 . . 30 54 92 103 Kinetic 42173 | 135 841 72 487 . . . 717 546 . 1650 . 84 3557 951 2197 1963 510 950 5090 4054 453 2061 5118 7244 3493 Thermal 3977 | . . . 313 42 709 1845 110 . . . . . . . . . . . . 440 464 54 . . . Explosive 2138 | . . . . . 45 471 . . . . . . . . . . . . 215 . . . . 1407 . Electromagnetic 4326 | . . . 984 99 1161 1839 . . . . . . . . . . . . . . . . . 243 . Impact 275 | . 136 . 139 . . . . . . . . . . . . . . . . . . . . . . Slashing 1916 | . 45 . . . . . . . . . . . . . . . . . . 1816 55 . . . . Piercing . | . . . . . . . . . . . . . . . . . . . . . . . . . . Entropic 1653 | . . . . . . . . . . . . . . . . . . . . 1653 . . . . . Highest Corruption 22 | . . . . . 1 . 2 15 16 22 . . 2 2 6 3 1 4 6 6 2 . 1 3 4 Average Corruption 3 | . . . . . 1 . 2 9 15 17 . . 1 2 2 2 1 1 3 3 2 . 1 2 3 Corruption Purged 13 | . . . . . . . . . . . . . . . 6 2 1 . . 4 . . . . . Corruption Blocked . | . . . . . . . . . . . . . . . . . . . . . . . . . . Effects 169 | . . . . . 7 . 2 6 2 29 . . 12 12 6 1 1 4 14 45 6 . 1 7 14 Message Errors 40 | . . . . . . . . 2 . 5 . . 3 2 3 1 . 1 4 10 3 . . 2 4 Matter Fused 36 | . . . . . 2 . 1 1 . 3 . . 3 3 2 . . 1 3 12 1 . . 1 3 Heat Flow Errors 19 | . . . . . 1 . . 1 . . . . 2 5 . . . 1 2 5 . . . 1 1 Energy Discharges 14 | . . . . . 2 . . . 1 4 . . . . . . . . . 5 . . . 1 1 Parts Rejected 4 | . . . . . . . . . . 1 . . . . . . . . . 1 1 . . . 1 Parts Fused 4 | . . . . . . . . . . 2 . . . . . . . 1 . . . . . . 1 Data Loss (minor) 15 | . . . . . . . . 1 . 1 . . . . 1 . 1 . 1 9 . . . 1 . Data Loss (major) 5 | . . . . . 1 . . 1 . . . . 1 . . . . . . . . . 1 . 1 Misfires 4 | . . . . . . . . . . . . . . 2 . . . . 1 . 1 . . . . Alerts 5 | . . . . . 1 . . . 1 1 . . 1 . . . . . . . . . . . 1 Misdirections 2 | . . . . . . . . . . 2 . . . . . . . . . . . . . . . Weapon Failures 21 | . . . . . . . 1 . . 10 . . 2 . . . . . 3 3 . . . 1 1 Overload Shots . | . . . . . . . . . . . . . . . . . . . . . . . . . . Overflow Damage 329 | . 66 . 25 . 1 . . . . . . . . . . . . . . 79 . . 11 85 62 Projectiles 127 | . . . . . . . . . . . . . . . . . . . . 58 . . . 7 62 Explosions 43 | . . . . . 1 . . . . . . . . . . . . . . 16 . . . 26 . Melee 159 | . 66 . 25 . . . . . . . . . . . . . . . . 5 . . 11 52 . Knockbacks 47 | . . . . . . . . . . . . . . . . . . . . 14 . . . 8 25 Impact 2 | . . . . . . . . . . . . . . . . . . . . . . . . 1 1 Kinetic 42 | . . . . . . . . . . . . . . . . . . . . 13 . . . 7 22 Secondary 3 | . . . . . . . . . . . . . . . . . . . . 1 . . . . 2 Self-Inflicted Damage 486 | . 18 . 38 23 130 68 . . . 12 . . . . . . . . . 178 . . . 19 . Shots 11 | . 1 . 1 1 3 3 . . . . . . . . . . . . . 1 . . . 1 . Rammed 36 | . 3 4 2 3 . 5 . . 5 1 . . 1 . . . . . 2 . . 2 2 2 4 Targets Rammed 41 | . 3 5 2 4 . 5 . . 5 1 . . 1 . . . . . 2 . . 3 2 2 6 Kicked . | . . . . . . . . . . . . . . . . . . . . . . . . . . Crushed 5 | . . 1 . 1 . . . . . . . . . . . . . . . . . 1 . . 2 Highest Temperature 543 | . 12 7 81 48 142 445 358 299 . 2 . . 241 259 275 218 281 310 153 543 199 189 . 140 316 Average Temperature 86 | . 4 5 19 20 38 88 163 114 . 1 . . 48 79 84 82 109 100 46 150 124 82 . 83 106 Received Heat Transfer 4059 | . 144 9 224 9 216 936 108 . 72 461 . 12 93 50 282 9 70 132 218 627 . 24 48 288 27 Effects 11 | . . . . . . 1 . . . . . . . . . . . . . 10 . . . . . Shutdowns 4 | . . . . . . . . . . . . . . . . . . . . 4 . . . . . Energy Bleed 1 | . . . . . . 1 . . . . . . . . . . . . . . . . . . . Interference 2 | . . . . . . . . . . . . . . . . . . . . 2 . . . . . Matter Decay 1 | . . . . . . . . . . . . . . . . . . . . 1 . . . . . Short Circuit 1 | . . . . . . . . . . . . . . . . . . . . 1 . . . . . Damage (minor) 1 | . . . . . . . . . . . . . . . . . . . . 1 . . . . . Damage (major) 1 | . . . . . . . . . . . . . . . . . . . . 1 . . . . . Siege Activations 9 | . . . . . . . . . . . . . . . 2 . . 1 1 1 . . . 3 1 Total Turns 241 | . . . . . . . . . . . . . . . 49 . . 25 17 19 . . . 89 42 Longest Duration 64 | . . . . . . . . . . . . . . . 38 . . 25 17 19 . . . 64 42 Martial Activations . | . . . . . . . . . . . . . . . . . . . . . . . . . . Shielding Activations . | . . . . . . . . . . . . . . . . . . . . . . . . . . Robots Disrupted . | . . . . . . . . . . . . . . . . . . . . . . . . . . Combat Hostiles . | . . . . . . . . . . . . . . . . . . . . . . . . . . Robots Corrupted 9 | . 1 . 1 . 2 3 . . . . . . . . . . . . . . . . 1 1 . Combat Hostiles 5 | . . . . . 2 3 . . . . . . . . . . . . . . . . . . . Parts Fried 36 | . 5 . 11 . 4 12 . . . . . . . . . . . . . . . . 1 3 . Impact Corruptions 8 | . 3 . 1 . . . . . . . . . . . . . . . . . . . 1 3 . Robots Melted . | . . . . . . . . . . . . . . . . . . . . . . . . . . Combat Hostiles . | . . . . . . . . . . . . . . . . . . . . . . . . . . Parts Melted 22 | . . . . . . 8 1 . . . . . . . . 6 . . . 2 5 . . . . Heat Transferred 6688 | . . . 400 50 1035 3205 444 . . . . . . . . . . . . 592 888 74 . . . Parts Sabotaged 2 | . . . . . 2 . . . . . . . . . . . . . . . . . . . . Parts Stolen . | . . . . . . . . . . . . . . . . . . . . . . . . . . Parts Stripped . | . . . . . . . . . . . . . . . . . . . . . . . . . . Power Chain Reactions 21 | . . . 4 1 6 10 . . . . . . . . . . . . . . . . . . . Alert | -11 -10 -10 -9 -9 -9 -8 -7 -7 -7 -7 -6 -6 -5 -5 -5 -5 -4 -4 -3 -3 -3 -2 -2 -1 -1 ------- Run | Yrd Mat Min Mat Sto Gar Mat Fac Was Fac Gar Fac DSF Fac Upp Upp War Pro Fac Res Gar Res Res Tes Acc Com Maximum Alert Level 5 | . . . 1 . 4 4 2 1 . 2 1 . 1 . . . . . 2 5 4 2 2 4 3 Low Security (%) 29 | 100 100 100 11 100 14 . . 65 100 17 . 100 76 . . . . 100 46 . . . 30 . . Level 1 21 | . . . 88 . 12 . . 34 . 33 100 . 23 . . . . . 34 . . 35 34 3 . Level 2 21 | . . . . . 21 5 100 . . 49 . . . . . . . . 19 13 . 64 34 56 . Level 3 12 | . . . . . 26 62 . . . . . . . . . . . . . 7 23 . . 11 100 Level 4 11 | . . . . . 25 32 . . . . . . . . . . . . . 40 76 . . 28 . Level 5 4 | . . . . . . . . . . . . . . . . . . . . 38 . . . . . High Security . | . . . . . . . . . . . . . . . . . . . . . . . . . . Max Security . | . . . . . . . . . . . . . . . . . . . . . . . . . . Sterilizations 1 | . . . . . . . . . . . . 1 . . . . . . . . . . . . . Peak Influence 1976 | 5 128 84 362 159 1544 1371 669 223 86 539 280 189 299 . . . . 140 669 1976 1240 688 576 1408 929 Initial 1111 | . 3 34 . 129 72 752 607 223 86 49 280 189 98 . . . . . 69 515 1111 688 234 329 900 Average 522 | 1 48 8 286 116 741 1025 592 174 76 357 277 189 128 . . . . 44 266 1349 1141 435 319 773 873 Influence Increases 13371 | 20 545 60 898 181 1522 1178 192 . 4 585 . . 631 180 395 265 160 270 1026 1801 304 426 738 1577 413 Destroy 0b10 Robot/C 7660 | . 320 40 580 100 620 720 80 . . 360 . . 360 160 360 200 140 160 600 660 220 320 480 960 220 Destroy 0b10 Robot/NC 505 | 20 25 10 55 5 . 65 55 . . . . . 25 . 5 5 . . 35 30 10 20 55 60 25 Destroy Leader 1274 | . 74 10 146 20 20 168 22 . . 30 . . 74 20 30 . 20 40 142 60 40 62 62 168 66 Allied During Kill 63 | . . . 21 . 30 . . . . . . . . . . . . . . 12 . . . . . Successful Hack 256 | . 26 . 37 22 42 12 . . 4 . . . 11 . . . . 12 62 14 . . . 14 . Select Force Hacks 80 | . 60 . . . . . 20 . . . . . . . . . . . . . . . . . . Disable Machine 420 | . 15 . 15 30 30 30 . . . . . . 45 . . . . 15 30 15 15 15 75 90 . Anti-Garrison Action 1150 | . . . . . 550 . . . . 150 . . . . . . . . . 450 . . . . . Destroy Structure 1138 | . 25 . 29 4 125 63 . . . 15 . . 116 . . . . 28 82 260 4 9 51 225 102 Partial Spotted 45 | . . . . . . . 15 . . . . . . . . . . . 15 15 . . . . . Lose Combat Pursuer 780 | . . . 15 . 105 120 . . . 30 . . . . . 60 . 15 60 285 15 . 15 60 . Influence Decreases 12504 | 15 461 149 591 376 90 1386 889 516 57 121 264 81 567 421 308 153 371 138 471 512 1055 1235 604 719 954 Entered New Map 5651 | . 2 55 . 178 40 792 729 416 37 21 254 81 91 94 3 99 211 . 63 172 865 537 182 221 508 Time Decay 5713 | 15 439 94 591 198 . 464 150 80 20 . 10 . 456 317 175 54 160 108 368 . 150 688 422 398 356 Lost Part 1040 | . 20 . . . 30 130 10 20 . 100 . . 20 10 90 . . 30 40 300 40 10 . 100 90 Lost Ally 100 | . . . . . 20 . . . . . . . . . 40 . . . . 40 . . . . . Squads Dispatched 71 | . 6 . 3 . . 9 2 . 2 . . . 3 . 1 . . 2 7 . 6 1 8 18 3 Investigation 12 | . 3 . 1 . . 1 1 . 2 . . . . . . . . 1 1 . 1 . . . 1 Extermination 11 | . . . . . . . 1 . . . . . 2 . . . . . 2 . . . 3 1 2 Reinforcement 26 | . 3 . 2 . . 5 . . . . . . 1 . . . . 1 3 . . 1 5 5 . Assault 9 | . . . . . . 2 . . . . . . . . 1 . . . . . 4 . . 2 . Garrison 13 | . . . . . . 1 . . . . . . . . . . . . 1 . 1 . . 10 . Intercept . | . . . . . . . . . . . . . . . . . . . . . . . . . . Searches Triggered . | . . . . . . . . . . . . . . . . . . . . . . . . . . Construction Impeded 3 | . . . . . . 1 . . . . . . 1 . . . . . 1 . . . . . . Haulers Reinforced 5 | . . . . . . . . . . . . . . . . . . . 1 . . 1 . 3 . Active Scanning Responses . | . . . . . . . . . . . . . . . . . . . . . . . . . . Cargo Convoy Interrupts . | . . . . . . . . . . . . . . . . . . . . . . . . . . Stealth | -11 -10 -10 -9 -9 -9 -8 -7 -7 -7 -7 -6 -6 -5 -5 -5 -5 -4 -4 -3 -3 -3 -2 -2 -1 -1 --------- Run | Yrd Mat Min Mat Sto Gar Mat Fac Was Fac Gar Fac DSF Fac Upp Upp War Pro Fac Res Gar Res Res Tes Acc Com Distress Signals 29 | . 1 . 1 . . 2 1 . . . . . . . . 2 . 1 2 . . 10 3 4 2 Communications Jammed . | . . . . . . . . . . . . . . . . . . . . . . . . . . Distress Signals . | . . . . . . . . . . . . . . . . . . . . . . . . . . Times Spotted 592 | . 30 3 37 5 34 54 7 4 5 28 . 14 20 9 19 51 6 13 41 49 12 29 29 69 24 Peak Tracking Total 15 | . 3 3 5 3 9 9 2 4 5 6 . 5 5 4 7 15 5 7 6 12 5 5 4 9 9 Tactical Retreats 39 | . . . 1 . 3 6 . . . 2 . . . . . 2 . 1 3 15 1 . 1 4 . Traps | -11 -10 -10 -9 -9 -9 -8 -7 -7 -7 -7 -6 -6 -5 -5 -5 -5 -4 -4 -3 -3 -3 -2 -2 -1 -1 ------- Run | Yrd Mat Min Mat Sto Gar Mat Fac Was Fac Gar Fac DSF Fac Upp Upp War Pro Fac Res Gar Res Res Tes Acc Com Traps Triggered 19 | . 2 . 1 . 2 . 1 . 1 2 . . 3 . . . . 1 1 . . . 4 1 . Indirectly 1 | . . . . . . . . . . . . . . . . . . . . . . . . 1 . Trap Hack Attempts . | . . . . . . . . . . . . . . . . . . . . . . . . . . Triggered . | . . . . . . . . . . . . . . . . . . . . . . . . . . Disarmed . | . . . . . . . . . . . . . . . . . . . . . . . . . . Reprogrammed . | . . . . . . . . . . . . . . . . . . . . . . . . . . Reused . | . . . . . . . . . . . . . . . . . . . . . . . . . . Traps Extracted . | . . . . . . . . . . . . . . . . . . . . . . . . . . Installed . | . . . . . . . . . . . . . . . . . . . . . . . . . . Triggered . | . . . . . . . . . . . . . . . . . . . . . . . . . . Machines | -11 -10 -10 -9 -9 -9 -8 -7 -7 -7 -7 -6 -6 -5 -5 -5 -5 -4 -4 -3 -3 -3 -2 -2 -1 -1 ---------- Run | Yrd Mat Min Mat Sto Gar Mat Fac Was Fac Gar Fac DSF Fac Upp Upp War Pro Fac Res Gar Res Res Tes Acc Com Machines Disabled 47 | . 1 . 1 2 12 2 . . . 1 . . 3 . 1 1 . 1 2 7 1 1 5 6 . Max in Single Turn 2 | . 1 . 1 1 2 1 . . . 1 . . 1 . 1 1 . 1 1 2 1 1 1 2 . Garrison Access 4 | . . . . . . . . . . . . . . . . . . . . . 1 3 . . . Garrison Relay 12 | . . . . . 7 . . . . 1 . . . . . . . . . 4 . . . . . Phase Generator 2 | . . . . . 1 . . . . . . . . . . . . . . 1 . . . . . Machines Repaired . | . . . . . . . . . . . . . . . . . . . . . . . . . . Machines Dismantled . | . . . . . . . . . . . . . . . . . . . . . . . . . . Machines Sabotaged . | . . . . . . . . . . . . . . . . . . . . . . . . . . Overloaded Fab Kills . | . . . . . . . . . . . . . . . . . . . . . . . . . . Hacking | -11 -10 -10 -9 -9 -9 -8 -7 -7 -7 -7 -6 -6 -5 -5 -5 -5 -4 -4 -3 -3 -3 -2 -2 -1 -1 --------- Run | Yrd Mat Min Mat Sto Gar Mat Fac Was Fac Gar Fac DSF Fac Upp Upp War Pro Fac Res Gar Res Res Tes Acc Com Machines Accessed 55 | . 9 . 10 5 5 5 2 . 2 . 1 . 3 1 . 2 . 1 3 1 1 . 1 3 . Terminals 32 | . 6 . 7 3 5 3 . . . . 1 . 1 . . . . . 1 1 . . 1 3 . Fabricators 3 | . . . . . . . 1 . 1 . . . 1 . . . . . . . . . . . . Repair Stations 7 | . 1 . 1 1 . 1 1 . . . . . . . . . . 1 . . 1 . . . . Recycling Units 2 | . 2 . . . . . . . . . . . . . . . . . . . . . . . . Scanalyzers 5 | . . . 2 . . 1 . . . . . . 1 . . . . . 1 . . . . . . Garrison Access 3 | . . . . 1 . . . . 1 . . . . . . . . . 1 . . . . . . Total Hacks 148 | . 31 . 31 16 10 14 4 . 6 . 1 . 10 1 . 6 . 3 6 1 3 . 2 3 . Successful 90 | . 21 . 22 9 5 4 2 . 2 . 1 . 6 1 . 6 . 1 4 1 1 . 1 3 . Failed 55 | . 9 . 8 7 5 10 2 . 4 . . . 3 . . . . 2 2 . 2 . 1 . . Catastrophic 6 | . . . . . 1 2 . . . . . . 1 . . . . 1 . . 1 . . . . Database Lockouts 3 | . 1 . 1 . . . . . . . . . 1 . . . . . . . . . . . . Manual 59 | . 24 . 14 3 . 4 2 . 2 . . . 1 . . . . 1 2 . 3 . 2 . 1 Terminals 79 | . 23 . 21 7 10 7 . . . . 1 . 2 . . . . . 2 1 . . 2 3 . Fabricators 8 | . . . . . . . 2 . 5 . . . 1 . . . . . . . . . . . . Repair Stations 27 | . 6 . 2 8 . 3 2 . . . . . . . . . . 3 . . 3 . . . . Recycling Units 2 | . 2 . . . . . . . . . . . . . . . . . . . . . . . . Scanalyzers 21 | . . . 8 . . 4 . . . . . . 7 . . . . . 2 . . . . . . Garrison Access 4 | . . . . 1 . . . . 1 . . . . . . . . . 2 . . . . . . Terminal Hacks 28 | . 3 . 5 2 5 . . . . . 1 . 1 1 . 6 . . . 1 . . . 3 . Robot Analysis 2 | . 1 . . 1 . . . . . . . . . . . . . . . . . . . . . Prototype ID Bank 7 | . 1 . 1 . . . . . . . . . . . . 5 . . . . . . . . . Open Door 7 | . . . . 1 1 . . . . . . . . 1 . 1 . . . . . . . 3 . Open DSF 1 | . . . . . . . . . . . 1 . . . . . . . . . . . . . . Branch Access Points 2 | . . . 1 . . . . . . . . . 1 . . . . . . . . . . . . Emergency Access Points 1 | . . . . . 1 . . . . . . . . . . . . . . . . . . . . Terminal Index 1 | . 1 . . . . . . . . . . . . . . . . . . . . . . . . Locate Traps 1 | . . . 1 . . . . . . . . . . . . . . . . . . . . . . Zone Layout 2 | . . . 2 . . . . . . . . . . . . . . . . . . . . . . Garrison Registry 2 | . . . . . 1 . . . . . . . . . . . . . . 1 . . . . . Patrol Navigation 1 | . . . . . 1 . . . . . . . . . . . . . . . . . . . . Security Stations 1 | . . . . . 1 . . . . . . . . . . . . . . . . . . . . Fabricator Hacks 1 | . . . . . . . . . 1 . . . . . . . . . . . . . . . . Load Schematic 1 | . . . . . . . . . 1 . . . . . . . . . . . . . . . . Repair Station Hacks 17 | . 6 . 2 6 . 1 1 . . . . . . . . . . 1 . . . . . . . Scan Component 9 | . 3 . 1 3 . 1 . . . . . . . . . . . 1 . . . . . . . Repair 7 | . 3 . 1 3 . . . . . . . . . . . . . . . . . . . . . Refit 1 | . . . . . . . 1 . . . . . . . . . . . . . . . . . . Recycling Unit Hacks . | . . . . . . . . . . . . . . . . . . . . . . . . . . Scanalyzer 13 | . . . 7 . . 1 . . . . . . 4 . . . . . 1 . . . . . . Insert Component 4 | . . . 3 . . . . . . . . . 1 . . . . . . . . . . . . Analyze 4 | . . . 3 . . . . . . . . . 1 . . . . . . . . . . . . Retrieve Study 5 | . . . 1 . . 1 . . . . . . 2 . . . . . 1 . . . . . . Garrison Access Hacks 3 | . . . . 1 . . . . 1 . . . . . . . . . 1 . . . . . . Unlock Access 3 | . . . . 1 . . . . 1 . . . . . . . . . 1 . . . . . . Unauthorized Hacks 28 | . 12 . 8 . . 2 1 . . . . . 1 . . . . . 2 . 1 . 1 . . Terminals 22 | . 10 . 8 . . 1 . . . . . . . . . . . . 2 . . . 1 . . Track 2 | . . . . . . . . . . . . . . . . . . . 1 . . . 1 . . Botnet 9 | . 4 . 3 . . 1 . . . . . . . . . . . . 1 . . . . . . Operators 1 | . 1 . . . . . . . . . . . . . . . . . . . . . . . . Skim 10 | . 5 . 5 . . . . . . . . . . . . . . . . . . . . . . Fabricators 2 | . . . . . . . 1 . . . . . 1 . . . . . . . . . . . . Liberate 1 | . . . . . . . . . . . . . 1 . . . . . . . . . . . . Download 1 | . . . . . . . 1 . . . . . . . . . . . . . . . . . . Repair Stations 2 | . . . . . . 1 . . . . . . . . . . . . . . 1 . . . . Patch 2 | . . . . . . 1 . . . . . . . . . . . . . . 1 . . . . Recycling Units 2 | . 2 . . . . . . . . . . . . . . . . . . . . . . . . Tunnel 2 | . 2 . . . . . . . . . . . . . . . . . . . . . . . . Scanalyzers . | . . . . . . . . . . . . . . . . . . . . . . . . . . Garrison Access . | . . . . . . . . . . . . . . . . . . . . . . . . . . Data Cores Recovered 1 | . . . . . . . . . . . . . . . . . . . . . . 1 . . . Used . | . . . . . . . . . . . . . . . . . . . . . . . . . . Hacking Detections 41 | . 7 . 8 4 4 5 1 . 1 . 1 . 2 . . . . 1 3 . 1 . 1 1 1 Full Trace Events 3 | . . . . . 1 . . . 1 . . . . . . . . 1 . . . . . . . Feedback Events 2 | . . . . . . . . . 1 . . . . . . . . 1 . . . . . . . Corruption 2 | . . . . . . . . . 1 . . . . . . . . 1 . . . . . . . Feedback Blocked . | . . . . . . . . . . . . . . . . . . . . . . . . . . Robot Schematics Acquired 4 | . . . . . . . . . . . . . . . . . . . . . . . 4 . . Robots Built . | . . . . . . . . . . . . . . . . . . . . . . . . . . Authchips . | . . . . . . . . . . . . . . . . . . . . . . . . . . Time . | . . . . . . . . . . . . . . . . . . . . . . . . . . Total Robot Build Rating . | . . . . . . . . . . . . . . . . . . . . . . . . . . Part Schematics Acquired 16 | . . . 3 . . . 1 . . . . . 1 . . . . . . . . . 11 . . Parts Built . | . . . . . . . . . . . . . . . . . . . . . . . . . . Authchips . | . . . . . . . . . . . . . . . . . . . . . . . . . . Time . | . . . . . . . . . . . . . . . . . . . . . . . . . . Total Part Build Rating . | . . . . . . . . . . . . . . . . . . . . . . . . . . Part Studies Acquired 5 | . . . 1 . . 1 . . . . . . 2 . . . . . 1 . . . . . . Parts Repaired 7 | . 3 . 1 3 . . . . . . . . . . . . . . . . . . . . . Time 231 | . 84 . 32 115 . . . . . . . . . . . . . . . . . . . . . Parts Recycled . | . . . . . . . . . . . . . . . . . . . . . . . . . . Recycled Matter . | . . . . . . . . . . . . . . . . . . . . . . . . . . Retrieved Matter . | . . . . . . . . . . . . . . . . . . . . . . . . . . Retrieved Components . | . . . . . . . . . . . . . . . . . . . . . . . . . . Parts Scanalyzed 4 | . . . 3 . . . . . . . . . 1 . . . . . . . . . . . . Part Schematics Acquired 4 | . . . 3 . . . . . . . . . 1 . . . . . . . . . . . . Parts Damaged . | . . . . . . . . . . . . . . . . . . . . . . . . . . Bothacking | -11 -10 -10 -9 -9 -9 -8 -7 -7 -7 -7 -6 -6 -5 -5 -5 -5 -4 -4 -3 -3 -3 -2 -2 -1 -1 ------------ Run | Yrd Mat Min Mat Sto Gar Mat Fac Was Fac Gar Fac DSF Fac Upp Upp War Pro Fac Res Gar Res Res Tes Acc Com Used RIF Installer . | . . . . . . . . . . . . . . . . . . . . . . . . . . Robots Hacked . | . . . . . . . . . . . . . . . . . . . . . . . . . . Non-combat . | . . . . . . . . . . . . . . . . . . . . . . . . . . Combat . | . . . . . . . . . . . . . . . . . . . . . . . . . . Robot Hacks Applied . | . . . . . . . . . . . . . . . . . . . . . . . . . . Relay Couplers Released 57 | . . . . . 30 . . . . 4 . . . . . . . . 3 16 3 1 . . . Machine Destruction 50 | . . . . . 26 . . . . 4 . . . . . . . . . 16 3 1 . . . Programmers 7 | . . . . . 4 . . . . . . . . . . . . . 3 . . . . . . Fabnet Peak Effective % . | . . . . . . . . . . . . . . . . . . . . . . . . . . Robots Rewired 2 | . . . . . . . . . . . . . . . 2 . . . . . . . . . . Allies Hacked . | . . . . . . . . . . . . . . . . . . . . . . . . . . Hacks Repelled . | . . . . . . . . . . . . . . . . . . . . . . . . . . Allies | -11 -10 -10 -9 -9 -9 -8 -7 -7 -7 -7 -6 -6 -5 -5 -5 -5 -4 -4 -3 -3 -3 -2 -2 -1 -1 -------- Run | Yrd Mat Min Mat Sto Gar Mat Fac Was Fac Gar Fac DSF Fac Upp Upp War Pro Fac Res Gar Res Res Tes Acc Com Total Allies 7 | . . 1 . . 2 . . . . . . . . . 2 . . . . 2 . . . . . Largest Group 2 | . . 1 1 . 2 . . . . . . . . . 2 . . . . 2 . . . . . Highest-Rated Group 142 | . . 31 31 . 56 . . . . . . . . . 60 . . . . 142 . . . . . Highest-Rated Ally 80 | . . 31 31 . 31 . . . . . . . . . 30 . . . . 80 . . . . . Initial Warlord ECA Mod 30 | . . . . . . 11 10 10 10 10 14 14 23 23 23 23 22 22 21 21 30 29 29 28 28 Total Orders . | . . . . . . . . . . . . . . . . . . . . . . . . . . Ally Attacks 64 | . . . 37 . 10 . . . . . . . . . 4 . . . . 13 . . . . . Total Damage 1398 | . . . 593 . 220 . . . . . . . . . 83 . . . . 502 . . . . . Kills 14 | . . . 11 . 2 . . . . . . . . . . . . . . 1 . . . . . Allies Corrupted 2 | . . . . . . . . . . . . . . . . . . . . 2 . . . . . Allies Melted 1 | . . . . . . . . . . . . . . . . . . . . . . 1 . . . Intel | -11 -10 -10 -9 -9 -9 -8 -7 -7 -7 -7 -6 -6 -5 -5 -5 -5 -4 -4 -3 -3 -3 -2 -2 -1 -1 ------- Run | Yrd Mat Min Mat Sto Gar Mat Fac Was Fac Gar Fac DSF Fac Upp Upp War Pro Fac Res Gar Res Res Tes Acc Com Active Infowar (turns) 5105 | 9 126 . . . . 25 220 172 55 187 . . 53 . 112 1068 1003 551 843 455 68 1 . 157 . Optics 3898 | . . . . . . . . . . . . . . . 66 1068 1003 551 843 366 . 1 . . . Terrain 100 | . . . . . . 25 75 . . . . . . . . . . . . . . . . . . Structural 33 | . . . . . . . 33 . . . . . . . . . . . . . . . . . . Traps 784 | . . . . . . . . . . . . . 53 . 112 619 . . . . . . . . . Seismic 135 | 9 126 . . . . . . . . . . . . . . . . . . . . . . . . Machine Analysis 634 | . . . . . . . 220 172 55 187 . . . . . . . . . . . . . . . Cloaking 1004 | . . . . . . . . . . . . . . . . 9 . 180 425 165 68 . . 157 . Robot Analysis Total 2 | . 1 . . 1 . . . . . . . . . . . . . . . . . . . . . Derelict Logs Recovered 6 | . . 2 . . . . . . . . . . . 2 1 . 1 . . . . . . . . Drone Launches . | . . . . . . . . . . . . . . . . . . . . . . . . . . Drone Recoveries . | . . . . . . . . . . . . . . . . . . . . . . . . . . Exploration | -11 -10 -10 -9 -9 -9 -8 -7 -7 -7 -7 -6 -6 -5 -5 -5 -5 -4 -4 -3 -3 -3 -2 -2 -1 -1 ------------- Run | Yrd Mat Min Mat Sto Gar Mat Fac Was Fac Gar Fac DSF Fac Upp Upp War Pro Fac Res Gar Res Res Tes Acc Com Turns Passed 22323 | 78 1338 887 1924 410 1611 1176 313 172 55 438 24 92 1205 704 530 1068 1003 551 843 2013 317 2779 1029 959 804 Spaces Moved 12094 | 40 676 538 912 188 729 567 290 126 42 262 63 66 645 411 245 574 604 265 343 1015 139 1885 581 490 398 Core 151 | 4 . . . . . 4 104 . . 5 . . . . . . . . . 34 . . . . . Treads 10448 | . 245 538 912 188 729 563 . . 2 1 . . 485 411 245 574 604 265 343 850 139 1885 581 490 398 Legs 338 | . . . . . . . . . . . . 47 160 . . . . . . 131 . . . . . Wheels 884 | 36 431 . . . . . 72 126 40 179 . . . . . . . . . . . . . . . Hover 114 | . . . . . . . 114 . . . . . . . . . . . . . . . . . . Flight 159 | . . . . . . . . . . 77 63 19 . . . . . . . . . . . . . Fastest Speed 29 | 50 100 160 145 145 145 50 50 105 105 29 29 29 108 160 160 160 160 160 158 50 160 135 135 135 142 Average Speed 145 | 95 130 160 153 145 184 149 73 105 107 88 29 95 147 160 160 160 160 162 158 151 160 136 135 136 160 Slowest Speed 320 | 100 240 160 160 145 232 240 105 105 160 275 29 190 160 160 160 240 160 163 163 320 160 215 135 221 233 Overloaded Moves . | . . . . . . . . . . . . . . . . . . . . . . . . . . Propulsion Burnouts . | . . . . . . . . . . . . . . . . . . . . . . . . . . Robots Hopped . | . . . . . . . . . . . . . . . . . . . . . . . . . . Potential Cave-ins 1 | . . . . . . . . . . . . . 1 . . . . . . . . . . . . Cave-ins Triggered . | . . . . . . . . . . . . . . . . . . . . . . . . . . Exploration Rate (%) 47 | 3 97 98 69 28 88 48 13 80 2 34 2 78 16 63 47 83 86 8 18 80 6 73 53 21 28 Regions Visited 25 Branch Regions 8 Pre-discovered Areas 6 | . 2 2 1 . . . . . . . . . . 1 . . . . . . . . . . . Known Exits Taken 8 | . . . 1 1 . 1 . . 1 . 1 . 1 . 1 . . . 1 . . . . . . Unknown Exits Taken 11 | 1 1 1 . . . . . . . . . . . 1 . 1 1 1 . . 1 1 1 1 . Scrap Searched 7 | . . 1 . . . . . . . . . . . 1 2 . 3 . . . . . . . . Spaces Dug 108 | . 24 . 5 1 62 1 . . . . . . . . . . . 1 9 . . 1 1 . 3 Terrain Destroyed 796 | . 24 . 27 3 170 71 . . . 2 . 1 68 27 14 1 2 15 63 122 3 19 14 116 34 Melee 37 | . 17 . 5 1 1 1 . . . . . . . . . . . 1 6 . . 1 1 . 3 Projectile 250 | . . . . . . . . . . 2 . 1 68 27 14 1 2 13 15 6 3 18 11 38 31 AOE 501 | . 7 . 22 2 169 70 . . . . . . . . . . . . 41 116 . . . 74 . Terrain Rammed 1 | . . . . . . . . . . 1 . . . . . . . . . . . . . . . Walls Destroyed . | . . . . . . . . . . . . . . . . . . . . . . . . . . Machines Disabled . | . . . . . . . . . . . . . . . . . . . . . . . . . . Actions | -11 -10 -10 -9 -9 -9 -8 -7 -7 -7 -7 -6 -6 -5 -5 -5 -5 -4 -4 -3 -3 -3 -2 -2 -1 -1 --------- Run | Yrd Mat Min Mat Sto Gar Mat Fac Was Fac Gar Fac DSF Fac Upp Upp War Pro Fac Res Gar Res Res Tes Acc Com Total 14715 | 58 956 552 1317 306 853 722 345 144 48 359 66 85 790 433 315 659 626 340 482 1274 187 2036 686 603 473 Wait 847 | . 153 1 278 86 14 37 2 . . 5 . . 51 6 15 21 9 24 26 55 7 9 20 9 19 Move 12072 | 39 675 537 911 188 728 567 290 125 42 261 62 65 644 410 244 573 603 264 343 1013 138 1884 580 489 397 Hop . | . . . . . . . . . . . . . . . . . . . . . . . . . . Pick Up 157 | 3 13 2 15 4 5 12 5 2 . 3 1 1 18 1 2 7 3 7 9 18 4 13 2 6 1 Fast Attach 154 | 7 5 . 4 3 2 2 11 2 . 8 1 11 9 . . 10 . 2 1 34 3 24 8 3 4 Attach 99 | . 1 . 2 1 4 11 2 . 1 2 . 2 2 1 12 2 2 6 5 16 5 2 1 11 8 Detach 32 | . . . 4 . . . . . . 1 . 1 2 . 3 4 . 4 . 4 1 5 3 . . Swap 202 | . 12 3 17 7 15 8 1 1 . . . . 11 2 1 13 . 9 18 9 8 28 15 18 6 Drop 177 | . 6 . 22 5 3 7 9 2 . 7 1 3 9 2 . 8 3 5 6 17 4 43 9 4 2 Fire 805 | 9 58 3 53 5 73 73 25 12 . 59 . 2 38 11 31 20 6 18 66 75 16 24 43 59 26 Melee 105 | . 30 1 9 3 7 1 . . . 1 1 . . . . 1 . 1 6 33 1 1 3 2 4 Ram 5 | . . . . . . 3 . . . 2 . . . . . . . . . . . . . . . Kick . | . . . . . . . . . . . . . . . . . . . . . . . . . . Crush 36 | . 3 5 2 4 . 1 . . 5 . . . 1 . . . . . 2 . . 3 2 2 6 Escape Stasis 17 | . . . . . 2 . . . . 10 . . 5 . . . . . . . . . . . . Rewire 7 | . . . . . . . . . . . . . . . 7 . . . . . . . . . . Trap . | . . . . . . . . . . . . . . . . . . . . . . . . . . Miscellaneous . | . . . . . . . . . . . . . . . . . . . . . . . . . . Route ------- -11/Scrapyard -10/Materials (discovered 5 exits: *Mat x3 / [*Min] / [*Sub]) -10/Mines (discovered 4 exits: *Mat x2 / [*Exi] / [*Sub]) -9/Materials (discovered 6 exits: *Mat x3 / Min / *Sto x2) -9/Storage -9/Garrison (discovered 3 exits: *Mat x3) -8/Materials (discovered 3 exits: *Fac x3) -7/Factory -7/Waste -7/Factory -7/Garrison -6/Factory -6/DSF -5/Factory (discovered 5 exits: *Fac / *Upp x2 / *Ext x2) -5/Upper Caves -5/Upper Caves -5/Warlord -4/Proximity Caves -4/Factory -3/Research -3/Garrison (discovered 3 exits: *Res x3) -3/Research -2/Research (discovered 4 exits: *Acc x3 / *Tes) -2/Testing -1/Access -1/Command To Epsilon Eridani History --------- Turn | Location | Event 10 | -11/Scrapyard | Discovered new exit (range 15) 79 | -11/Scrapyard | Entered Materials 306 | -10/Materials | Build established: Mutant 323 | -10/Materials | Discovered new exit (range 9) 539 | -10/Materials | Discovered new exit (range 6) 572 | -10/Materials | Central database locked down 658 | -10/Materials | Discovered new exit (range 7) 706 | -10/Materials | Discovered new exit (range 13) 1043 | -10/Materials | Discovered new exit (range 14) 1251 | -10/Materials | Repaired Assault Rifle 1284 | -10/Materials | Repaired Imp. Treads 1312 | -10/Materials | Repaired Assault Rifle 1417 | -10/Materials | Entered Mines 1428 | -10/Mines | Escorted by a lone wolf Derelict 1448 | -10/Mines | Learned location of Storage (-9) 1512 | -10/Mines | Learned location of Zion (-6) 1557 | -10/Mines | Discovered new exit (range 12) 1797 | -10/Mines | Discovered new exit (range 3) 1908 | -10/Mines | Learned Materials stockpile data 1931 | -10/Mines | Discovered new exit (range 9) 2025 | -10/Mines | Deemed a non-threat by the Exiles lab entrance 2300 | -10/Mines | Discovered new exit (range 14) 2304 | -10/Mines | Entered Materials 2304 | -9/Materials | Accompanied by 1 ally 2304 | -9/Materials | Evolved 2 slots: Utility x1, Weapon x1 2387 | -9/Materials | Discovered new exit (range 13) 2467 | -9/Materials | Discovered new exit (range 15) 2831 | -9/Materials | Identified exit to Mines 2831 | -9/Materials | Identified exit to Storage 2959 | -9/Materials | Build established: Tank 3039 | -9/Materials | Discovered new exit (range 15) 3119 | -9/Materials | Repaired Hvy. Assault Rifle 3160 | -9/Materials | Central database locked down 3981 | -9/Materials | Loaded intel: 18 trap records 4018 | -9/Materials | Learned Storage garrison access intel 4046 | -9/Materials | Identified exit to Materials 4046 | -9/Materials | Learned location of 2 exits from Materials 4062 | -9/Materials | Learned Materials trap positions 4088 | -9/Materials | Learned Storage trap positions 4172 | -9/Materials | Learned location of 3 exits from Materials 4228 | -9/Materials | Entered Storage 4229 | -9/Storage | Loaded intel: 29 trap records 4230 | -9/Storage | Loaded intel: 1 garrison access location 4302 | -9/Storage | Repaired Cooling System? 4587 | -9/Storage | Repaired Imp. EM Shotgun 4621 | -9/Storage | Repaired Hrd. Light Armor Plating 4638 | -9/Storage | Identified exit to Garrison 4638 | -9/Storage | Entered Garrison 4675 | -9/Garrison | Learned Materials security intel 4736 | -9/Garrison | Triggered checkpoint 4863 | -9/Garrison | Rescued a captive Derelict 4863 | -9/Garrison | Rescued a captive Derelict 4986 | -9/Garrison | Discovered exit to Materials (range 13) 5036 | -9/Garrison | Triggered checkpoint 5064 | -9/Garrison | Garrison Relay disabled 5066 | -9/Garrison | Garrison Relay disabled 5136 | -9/Garrison | Garrison Relay disabled 5244 | -9/Garrison | Triggered checkpoint 5361 | -9/Garrison | Discovered exit to Materials (range 11) 5388 | -9/Garrison | Discovered exit to Materials (range 6) 5388 | -9/Garrison | Discovered exit to Materials (range 62) 5388 | -9/Garrison | Discovered exit to Materials (range 40) 5450 | -9/Garrison | Phase Generator disabled 5499 | -9/Garrison | Garrison Relay disabled 5720 | -9/Garrison | Triggered checkpoint 5854 | -9/Garrison | Garrison Relay disabled 5930 | -9/Garrison | Triggered checkpoint 6031 | -9/Garrison | Spotted B-75 Beast 6036 | -9/Garrison | Garrison Relay disabled 6082 | -9/Garrison | Destroyed B-75 Beast 6180 | -9/Garrison | Triggered checkpoint 6210 | -9/Garrison | Garrison Relay disabled 6249 | -9/Garrison | Entered Materials 6249 | -8/Materials | Evolved 2 slots: Propulsion x1, Weapon x1 6250 | -8/Materials | Identified exit to Factory 6251 | -8/Materials | Loaded intel: 17 trap records 6625 | -8/Materials | Destroyed 7 combat bots 7049 | -8/Materials | First assault squad dispatched 7094 | -8/Materials | Destroyed 7 combat bots 7401 | -8/Materials | Garrison activated, responded to threat 7412 | -8/Materials | Lost 5 parts (1p1n3u) 7420 | -8/Materials | Released all parts (7) 7424 | -8/Materials | Core integrity fell below 50% 7425 | -8/Materials | Entered Factory 7425 | -7/Factory | Evolved 2 slots: Power x1, Utility x1 7451 | -7/Factory | Lost 3 parts (2n1w) 7530 | -7/Factory | Discovered new exit (range 14) 7738 | -7/Factory | Sucked down chute 7738 | -7/Factory | Entered Waste 7753 | -7/Waste | EMP discharged 7770 | -7/Waste | Spotted C-40 Crusher 7784 | -7/Waste | Spotted C-40 Crusher 7819 | -7/Waste | Spotted C-40 Crusher 7821 | -7/Waste | Crushed by Compactor (2 parts destroyed, 1 dropped) 7822 | -7/Waste | Destroyed C-40 Crusher 7853 | -7/Waste | EMP discharged 7853 | -7/Waste | System corruption reached 10% 7860 | -7/Waste | Spotted C-40 Crusher 7882 | -7/Waste | Spotted C-40 Crusher 7894 | -7/Waste | Discovered new exit (range 16) 7895 | -7/Waste | Spotted C-40 Crusher 7910 | -7/Waste | Entered Factory 7965 | -7/Factory | Identified exit to Garrison 7965 | -7/Factory | Entered Garrison 7994 | -7/Garrison | Assembled breached garrison interior 8042 | -7/Garrison | Garrison Relay disabled 8130 | -7/Garrison | Build established: Scavenger-Tank 8393 | -7/Garrison | Lost 6 parts (2n4w) 8401 | -7/Garrison | Discovered new exit (range 8) 8403 | -7/Garrison | Entered Factory 8403 | -6/Factory | Evolved 2 slots: Propulsion x1, Utility x1 8412 | -6/Factory | Identified exit to DSF 8427 | -6/Factory | Entered DSF 8427 | -6/DSF | Encountered a pitched battle between 0b10 and Warlord forces 8478 | -6/DSF | Sterilization system engaged 8482 | -6/DSF | Spotted Striker 8498 | -6/DSF | Ambient heat levels rising (+10) 8507 | -6/DSF | Discovered new exit (range 10) 8513 | -6/DSF | Ambient heat levels rising (+10) 8519 | -6/DSF | Entered Factory 8519 | -5/Factory | Evolved 2 slots: Utility x1, Weapon x1 8528 | -5/Factory | Lost 19 allies 8573 | -5/Factory | Central database locked down 8682 | -5/Factory | Discovered new exit (range 10) 8938 | -5/Factory | Discovered new exit (range 4) 9135 | -5/Factory | Build established: Tank 9305 | -5/Factory | Identified exit to Upper Caves 9305 | -5/Factory | Identified exit to Extension 9724 | -5/Factory | Entered Upper Caves 9729 | -5/Upper Caves | Learned Factory terminal intel 9745 | -5/Upper Caves | Met a Warlord Commander 9746 | -5/Upper Caves | Learned location of Warlord (-5) 9747 | -5/Upper Caves | Warlord Commander delivered Encrypted Comm Array 9752 | -5/Upper Caves | Found Encrypted Comm Array 9835 | -5/Upper Caves | Attracted the attention of an 0b10 checkpoint 10233 | -5/Upper Caves | Discovered new exit (range 12) 10260 | -5/Upper Caves | Learned Factory security intel 10428 | -5/Upper Caves | Entered another Upper Caves area 10571 | -5/Upper Caves | Identified exit to Warlord 10630 | -5/Upper Caves | Attracted the attention of an 0b10 outpost 10668 | -5/Upper Caves | Destroyed 7 combat bots 10812 | -5/Upper Caves | Lost 5 parts (1p3u1w) 10893 | -5/Upper Caves | Attracted the attention of an 0b10 checkpoint 10958 | -5/Upper Caves | Entered Warlord 11011 | -5/Warlord | System corruption cleaned by Quarantine Array 11027 | -5/Warlord | Build established: Scavenger-Tank 11382 | -5/Warlord | Received a Watcher feed algorithm from an ecstatic Tinkerer 11418 | -5/Warlord | Visited the Vortex Lab 11427 | -5/Warlord | Warlord's base attacked by MAIN.C 11430 | -5/Warlord | Found Prototype Piercing Weapon 11430 | -5/Warlord | Identified Vortex Lance 11433 | -5/Warlord | Found Vortex Lance 11438 | -5/Warlord | Found Prototype Launcher 11532 | -5/Warlord | Found Prototype Processor 11532 | -5/Warlord | Identified Spectral Analyzer 11536 | -5/Warlord | Found Prototype Device 11536 | -5/Warlord | Identified Thermal Barrier 11553 | -5/Warlord | Found Prototype Device 11553 | -5/Warlord | Identified Exp. Cloaking Device 11561 | -5/Warlord | Found Prototype Reactor 11561 | -5/Warlord | Identified Vortex Chain Reactor 11643 | -5/Warlord | Met Warlord 11777 | -5/Warlord | Warlord forces counterattacked 11847 | -5/Warlord | Spotted Executioner 11868 | -5/Warlord | Spotted Striker 11885 | -5/Warlord | Lost 4 allies 11885 | -5/Warlord | Spotted Executioner 11903 | -5/Warlord | Found Corrupted Prototype Processor 11903 | -5/Warlord | Identified Exp. Targeting Computer 11913 | -5/Warlord | Spotted Executioner 11913 | -5/Warlord | Spotted Striker 11918 | -5/Warlord | Spotted Striker 11938 | -5/Warlord | Found Prototype Processor 11938 | -5/Warlord | Identified Exp. Core Analyzer 11949 | -5/Warlord | Destroyed Striker 11968 | -5/Warlord | Spotted Striker 12006 | -5/Warlord | Destroyed 7 combat bots 12007 | -5/Warlord | Discovered new exit (range 14) 12009 | -5/Warlord | Lost 18 allies 12026 | -5/Warlord | Entered Proximity Caves 12248 | -4/Proximity Caves | Build established: Scavenger-Gunner 12958 | -4/Proximity Caves | Discovered new exit (range 8) 12966 | -4/Proximity Caves | Learned Research garrison access intel 13029 | -4/Proximity Caves | Entered Factory 13029 | -4/Factory | Evolved 2 slots: Propulsion x1, Utility x1 13031 | -4/Factory | Loaded intel: 26 terminal locations 13322 | -4/Factory | Build established: Scavenger-Tank 13545 | -4/Factory | Discovered new exit (range 10) 13580 | -4/Factory | Entered Research 13580 | -3/Research | Evolved 2 slots: Propulsion x1, Weapon x1 13581 | -3/Research | Loaded intel: 4 garrison access locations 13883 | -3/Research | Build established: Scavenger-Executioner 14331 | -3/Research | Destroyed 10 combat bots 14347 | -3/Research | Garrison activated, responded to threat 14375 | -3/Research | Spotted B-86 Titan 14399 | -3/Research | Destroyed B-86 Titan 14423 | -3/Research | Identified exit to Garrison 14423 | -3/Research | Entered Garrison 14453 | -3/Garrison | Triggered checkpoint 14458 | -3/Garrison | Discovered new exit (range 30) 14458 | -3/Garrison | Discovered new exit (range 50) 14458 | -3/Garrison | Discovered new exit (range 65) 14495 | -3/Garrison | Garrison Relay disabled 14580 | -3/Garrison | Spotted B-86 Titan 14650 | -3/Garrison | Destroyed B-86 Titan 14759 | -3/Garrison | Destroyed 10 combat bots 14778 | -3/Garrison | Identified Vortex Catalyst Activator 14818 | -3/Garrison | Destroyed 7 combat bots 14833 | -3/Garrison | Lost 28 parts (3p9n4u12w) 14846 | -3/Garrison | Core integrity fell below 50% 15232 | -3/Garrison | Phase Generator disabled 15262 | -3/Garrison | Triggered checkpoint 15296 | -3/Garrison | Garrison Relay disabled 15339 | -3/Garrison | Triggered checkpoint 15421 | -3/Garrison | Found embedded Infiltrators 15510 | -3/Garrison | Garrison Relay disabled 15661 | -3/Garrison | Triggered checkpoint 16073 | -3/Garrison | Triggered checkpoint 16173 | -3/Garrison | Garrison Relay disabled 16273 | -3/Garrison | Attempted to access garrison exit controls, blocked by remote lockdown 16436 | -3/Garrison | Entered Research 16652 | -3/Research | Garrison activated, responded to threat 16686 | -3/Research | First assault squad dispatched 16699 | -3/Research | Destroyed 7 combat bots 16733 | -3/Research | Discovered new exit (range 6) 16746 | -3/Research | Found Heavy Servo Lattice 16753 | -3/Research | Entered another Research area 16753 | -2/Research | Warlord forces began assault on 0b10 16753 | -2/Research | Evolved 2 slots: Utility x2 16778 | -2/Research | Distinguished unit "Lair Dwellers" dispatched to help 16778 | -2/Research | Distinguished unit "Smaug Mourners" dispatched to help 16863 | -2/Research | Research machine network offline 16902 | -2/Research | Met up with Warlord 16974 | -2/Research | Borebot progress halted 17222 | -2/Research | Found Prototype Launcher 17222 | -2/Research | Identified Com. Tesla Bomb Launcher 17399 | -2/Research | Borebot progress halted 17541 | -2/Research | Borebot progress halted 17843 | -2/Research | Spotted Striker 17848 | -2/Research | Destroyed Striker 17926 | -2/Research | Spotted Striker 17926 | -2/Research | Spotted Striker 18040 | -2/Research | Discovered new exit (range 15) 18062 | -2/Research | Discovered new exit (range 14) 18261 | -2/Research | Given Cave Seal Controls access code 18320 | -2/Research | Found Exp. Core Analyzer 18439 | -2/Research | Spotted Striker 18441 | -2/Research | Destroyed Striker 18554 | -2/Research | Discovered new exit (range 3) 18898 | -2/Research | Discovered new exit (range 7) 19354 | -2/Research | Spotted Striker 19360 | -2/Research | Spotted Striker 19360 | -2/Research | Destroyed Striker 19366 | -2/Research | Spotted Striker 19371 | -2/Research | Destroyed Striker 19402 | -2/Research | Lost 4 allies 19493 | -2/Research | Found Prototype Launcher 19493 | -2/Research | Identified Mni. Smartbomb Launcher 19532 | -2/Research | Entered Testing 19677 | -2/Testing | Found Prototype Device 19677 | -2/Testing | Identified Exp. Hardlight Generator 20168 | -2/Testing | Found Prototype Ballistic Gun 20168 | -2/Testing | Identified Hyp. Multirail 20192 | -2/Testing | Scanned by Researcher 20314 | -2/Testing | Found Prototype Ballistic Gun 20314 | -2/Testing | Identified Multirail 20324 | -2/Testing | Discovered new exit (range 12) 20561 | -2/Testing | Entered Access 20561 | -1/Access | Evolved 2 slots: Utility x2 20626 | -1/Access | Garrison activated, responded to threat 20639 | -1/Access | Garrison activated, responded to threat 21010 | -1/Access | Garrison activated, responded to threat 21061 | -1/Access | First assault squad dispatched 21121 | -1/Access | Spotted B-99 Colossus 21139 | -1/Access | Garrison activated, responded to threat 21197 | -1/Access | Destroyed B-99 Colossus 21249 | -1/Access | Lost 7 parts (2u5w) 21286 | -1/Access | Destroyed 21 combat bots 21410 | -1/Access | Spotted B-99 Colossus 21415 | -1/Access | Destroyed 8 combat bots 21512 | -1/Access | Discovered new exit (range 7) 21520 | -1/Access | Entered Command 21841 | -1/Command | Disengaged cave seal 21841 | -1/Command | Derelicts emerged from the dark tunnel 21844 | -1/Command | Welcomed Warlord to Command 22219 | -1/Command | Spotted Executioner 22219 | -1/Command | Spotted Executioner 22219 | -1/Command | Spotted Executioner 22219 | -1/Command | Spotted Executioner 22219 | -1/Command | Spotted Striker 22219 | -1/Command | Spotted Striker 22219 | -1/Command | Spotted Alpha 7 22219 | -1/Command | Spotted Alpha 7 22220 | -1/Command | Spotted B-99 Colossus 22224 | -1/Command | Spotted B-99 Colossus 22240 | -1/Command | Destroyed Striker 22258 | -1/Command | Destroyed Alpha 7 22262 | -1/Command | Destroyed Executioner 22289 | -1/Command | Lost 5 parts (4u1w) 22313 | -1/Command | Discovered new exit (range 8) 22315 | -1/Command | Lost 17 allies 22324 | *** | Escaped! Last Messages --------------- 22271_ Slug penetrates Wall. 22271_ Slug penetrates B2-0IZ(M). 22271_ Slug penetrates Wall. 22272_ B-99 Colossus suffers critical hit (Destroy). 22272_ Blast Slug penetrates B-99 Colossus. 22279_ Ended siege mode. 22280_ Blast Slug penetrates B-99 Colossus. 22281_ HV Slug penetrates B-99 Colossus. 22281_ Acquired 153 matter. 22282_ B-99 Colossus exits siege mode. 22284_ HV Slug penetrates Warlord. 22284_ B2-0IZ(M) suffers critical hit (Destroy). 22284_ B2-0IZ(M) destroyed. 22284_ Acquired Unknown Protection. 22284_ Identified Med. Reflective Plating. 22292_ Acquired 4 matter. 22313_ The Access Shell folds into the floor. 22313_ EXIT=FOUND 22318_ Acquired 6 matter. Map ----- +----------------------------------------------------+ | ??????????????# """" #? ??#T | | ??????????????# "" #? ??#"" | | ??????????????# " #? ! ??#"" | | ??????????????#+#+####"""# #? ??#"" | | ?????????????? ? ## #? ??# | | ?????????????? ## #?#+##"" | | ?????????????? ######### #####?# ?/ | | ????????????? #####??## ####### #???"/"" | | ???????????? #!! ?# #???# | | ???????????# "" !! #!! ?# #???# | | ???????????# """" !! #!! # #???# | | ???????????+ """" ]! # # ##### | | ???????????# ??"" # + | | ???????????????? # ################ | | ???????????????? # ???????????????# | | ???????????????? # ????????????????# | | ???????????????###############????????????????# | | ??????????????????????????????????????????????# % | | ???????????????????##############?????????????# | | ???????????????????# #?????????###?##"# | | ???????????????????# ###########[### # | | ???????????????????# ^ ; # ; # #!"=!# % ! | | ???????????????????# ^ % *= !^*[!!"=[" | | ???????????????????# ^ ^ ^^ ^ [^!!%%=%%% | | ???????????????????# "" ^ ^^!^" !%=[%* | | ???????????????????# @" W ^^^^^ ^!^[ %=!%!= | | ???????????????????# ^ ! * ^!!! !%*=!] | | ???????????????????# ^ % ^ ^^ ^=^^######## | | ???????????????????# ^ % ; ; # !##?????? | | ???????????????????# %%% ;#########?????# | | ???????????????????# ##?????????????# | | ???????????????????##############??????????????# | | ???????????????????????????????????????????????# | | ???????????????????????????????????????????????# | | ???????????????????????????????????????????????#!! | | ???????????????????????????????????????????????#!! | | ???????????????????????????????????????????????#!= | | ???????????????????????????????????????????????### | | ?????????????????????????????????????????????????? | | ?????????????????????????????????????????????????? | | ?????????????????????????????????????????????????? | | ?????????????????????????????????????????????????? | | ?????????????????????????????????????????????????? | | ?????????????????????????????????????????????????? | | ?????????????????????????????????????????????????? | | ?????????????????????????????????????????????????? | | ?????????????????????????????????????????????????? | | ?????????????????????????????????????????????????? | | ?????????????????????????????????????????????????? | | ?????????????????????????????????????????????????? | +----------------------------------------------------+ Best States ------------- Heat Dissipation 128 Coolant Potential 65 Energy Generation 55 Energy Capacity 1200 Matter Stores 568 Matter Capacity 700 Sight Range 24 Terrain Scan Range 16 Terrain Scan Density 110 Cloak Strength 4 Base Temperature (-) 200 Armor Coverage 1200 Resistance: KI 30 Resistance: TH 50 Point Defense Rating 240 Weapon Cycling 20 Evasion (%) 64 Targeting Accuracy 12 Target Analysis 8 Core Analysis 8 Recoil Reduction 6 Matter Filtering 30 Kinecelleration 40 Item Schematics ----------------- Cooling System | -9/Materials | Scanalyzed Autogun | -9/Materials | Scanalyzed Hvy. EM Pulse Gun | -9/Materials | Scanalyzed Adv. Transmission Jammer | -7/Factory | Downloaded Imp. Cooling System | -5/Factory | Scanalyzed Exp. Q-thruster | -2/Testing | Archive Cld. Field Propulsion Drive | -2/Testing | Archive Exp. Terrain Scan Processor | -2/Testing | Archive Imp. Thermal Defense Suite | -2/Testing | Archive Proton Burst Cannon | -2/Testing | Archive Hvy. Antimatter Reactor | -2/Testing | Archive Enh. Armored Medium Treads | -2/Testing | Archive Exp. Focal Shield | -2/Testing | Archive Cld. Impulse Thruster | -2/Testing | Archive Hds. Centrium Leg | -2/Testing | Archive Exp. Thermal Shield | -2/Testing | Archive Robot Schematics ------------------ R-06 Scavenger | -2/Testing | Archive A-02 Transporter | -2/Testing | Archive C-65 Expert | -2/Testing | Archive X-77 Beamer | -2/Testing | Archive Fabricated ------------ Nothing Repaired ---------- Assault Rifle | 40% | -10/Materials Imp. Treads | 63% | -10/Materials Assault Rifle | 58% | -10/Materials Hvy. Assault Rifle | 68% | -9/Materials Cooling System | 28% | -9/Storage Imp. EM Shotgun | 35% | -9/Storage Hrd. Light Armor Plating | 37% | -9/Storage Studied --------- Autogun | -9/Materials | Hacked Adv. Treads | -8/Materials | Hacked Carbon-fiber Leg | -5/Factory | Hacked Hvy. Machine Gun | -5/Factory | Hacked Hvy. Treads | -3/Research | Hacked Alien Tech Used ----------------- None Achievements -------------- None Challenges ------------ None Game ------ Seed TargetMetafiberStatue Manual? 0 Play Time 03:40:38 Cumulative 924.1 hours Start 2026.02.15 @ 12:19:26 End 2026.02.16 @ 11:31:50 Sessions 5 Manual Loads 0 Difficulty Rogue Special Mode None Game No. 355 Rogue 355 Adventurer 0 Explorer 0 Win Type 0 Total 96 Types 45/6/17/9/8/1/1/3/1/5 Lore% 98 Gallery% 88 Achievement% 86 Wizard Run 0 Options --------- Layout 1 ASCII 0 Keyboard 0 Movement Numpad Keybinds 0 Fullscreen 1 Font 24/Smallcaps Map View 50x35 Zoom Use 0% Tactical HUD 1 Map Filters NONE Filters NONE Steam 1 RUN: 465178a0-36b9-4d2e-a4b1-2ed7b44604ad